fUSD/lending_fUSD_20250313
["ID","MTS","AMOUNT","RATE_DAILY","PERIOD"]
[356078294,1741884657137,-500.0,0.0002848,18]
[356078295,1741884657147,-500.0,0.0002848,18]
[356078296,1741884657156,-151.0,0.0002848,7]
[356078297,1741884657167,-151.0,0.0002848,7]
[356078298,1741884657177,-151.0,0.0002848,7]
[356078299,1741884657186,-500.0,0.0002848,18]
[356078300,1741884657197,-151.0,0.0002848,7]
[356078301,1741884657207,-500.0,0.0002848,18]
[356078302,1741884657217,-968.555085,0.0002848,7]
[356078303,1741884657226,-968.555085,0.0002848,7]
[356078304,1741884657235,-500.0,0.0002848,18]
[356078305,1741884657244,-109.41983051,0.0002848,18]
[356078306,1741884657356,-500.0,0.00028469,18]
[356078307,1741884657365,-500.0,0.00028469,18]
[356078308,1741884657375,-500.0,0.00028478,18]
[356078309,1741884657384,-500.0,0.00028479,18]
[356078310,1741884657394,-500.0,0.00028479,18]
[356078311,1741884657403,-264.50574644,0.00028479,18]
[356078312,1741884657414,-235.49425356,0.00028479,18]
[356078313,1741884657424,-318.27,0.00028479,18]
[356078314,1741884657433,-500.0,0.00028479,18]
[356078315,1741884657444,-119.06380157,0.00028479,18]
[356078316,1741884657455,-380.93619843,0.00028479,18]
[356078317,1741884657465,-517.17016949,0.0002848,18]
[356078318,1741884657474,-151.0,0.0002848,7]
[356078319,1741884657483,-151.0,0.0002848,7]
[356078320,1741884657493,-500.0,0.0002848,18]
[356078321,1741884657502,-150.0,0.0002848,2]
[356078322,1741884657512,-500.0,0.00028489,18]
[356078323,1741884657521,-500.0,0.00028489,18]
[356078324,1741884657530,-500.0,0.00028489,18]
[356078325,1741884657540,-500.0,0.00028489,18]
[356078326,1741884657549,-500.0,0.00028489,18]
[356078327,1741884657558,-500.0,0.00028489,18]
[356078328,1741884657567,-500.0,0.00028489,18]
[356078329,1741884657576,-500.0,0.00028489,18]
[356078330,1741884657585,-500.0,0.00028489,18]
[356078331,1741884657594,-500.0,0.00028489,18]
[356078332,1741884657603,-434.41,0.00028489,18]
[356078333,1741884657612,-438.06,0.00028489,18]
[356078334,1741884657622,-275.88,0.00028489,18]
[356078335,1741884657631,-332.67,0.00028489,18]
[356078336,1741884657640,-500.0,0.00028489,18]
[356078337,1741884657649,-558.91,0.00028489,18]
[356078338,1741884657659,-172.493051,0.00028489,18]
[356078339,1741884657670,-327.506949,0.00028489,18]
[356078340,1741884657679,-184.44,0.00028489,18]
[356078341,1741884657688,-500.0,0.00028489,18]
[356078342,1741884657699,-500.0,0.00028489,18]
[356078343,1741884657709,-322.54,0.00028489,18]
[356078344,1741884657718,-198.68,0.00028489,18]
[356078345,1741884657726,-500.0,0.00028489,18]
[356078346,1741884657735,-500.0,0.00028489,18]
[356078347,1741884657744,-216.45,0.00028489,18]
[356078348,1741884657753,-500.0,0.00028489,18]
[356078349,1741884657762,-500.0,0.00028489,18]
[356078350,1741884657771,-500.0,0.00028489,18]
[356078351,1741884657781,-500.0,0.00028489,18]
[356078352,1741884657791,-286.22,0.00028489,18]
[356078353,1741884657800,-500.0,0.00028489,18]
[356078354,1741884657809,-330.95,0.00028489,18]
[356078355,1741884657818,-539.64,0.00028489,18]
[356078356,1741884657827,-500.0,0.00028489,18]
[356078357,1741884657836,-603.02,0.00028489,18]
[356078358,1741884657845,-500.0,0.00028489,2]
[356078359,1741884657854,-500.0,0.00028489,2]
[356078360,1741884657864,-500.0,0.00028489,18]
[356078361,1741884657873,-500.0,0.00028489,18]
[356078362,1741884657882,-180.96,0.00028489,18]
[356078363,1741884657891,-234.0264665,0.00028489,18]
[356078364,1741884657908,-265.9735335,0.00028489,18]
[356078365,1741884657917,-500.0,0.00028489,18]
[356078366,1741884657928,-500.0,0.00028489,18]
[356078367,1741884657939,-500.0,0.00028489,18]
[356078368,1741884657949,-260.28,0.00028489,18]
[356078369,1741884657958,-500.0,0.00028489,18]
[356078370,1741884657967,-500.0,0.00028489,18]
[356078371,1741884657976,-500.0,0.00028489,18]
[356078372,1741884657986,-391.90520945,0.00028489,18]
[356078373,1741884657998,-108.09479055,0.00028489,18]
[356078374,1741884658007,-500.0,0.00028489,18]
[356078375,1741884658017,-500.0,0.00028489,18]
[356078376,1741884658027,-500.0,0.00028489,18]
[356078377,1741884658036,-400.43,0.00028489,18]
[356078378,1741884658047,-500.0,0.00028489,18]
[356078379,1741884658056,-158.62,0.00028489,18]
[356078380,1741884658066,-500.0,0.00028489,18]
[356078381,1741884658076,-500.0,0.00028489,18]
[356078382,1741884658085,-329.85520888,0.00028489,18]
[356078383,1741884658100,-170.14479112,0.00028489,18]
[356078384,1741884658110,-500.0,0.00028489,18]
[356078385,1741884658120,-500.0,0.00028489,18]
[356078386,1741884658132,-293.29,0.00028489,18]
[356078387,1741884658142,-500.0,0.00028489,18]
[356078388,1741884658151,-500.0,0.00028489,18]
[356078389,1741884658161,-479.12,0.00028489,18]
[356078390,1741884658171,-491.57477776,0.00028489,18]
[356078391,1741884658188,-8.42522224,0.00028489,18]
[356078392,1741884658199,-500.0,0.00028489,18]
[356078393,1741884658210,-500.0,0.00028489,18]
[356078394,1741884658220,-500.0,0.00028489,18]
[356078395,1741884658230,-500.0,0.00028489,18]
[356078396,1741884658239,-333.41,0.00028489,18]
[356078397,1741884658249,-500.0,0.00028489,18]
[356078398,1741884658258,-406.09,0.00028489,18]
[356078399,1741884658267,-500.0,0.00028489,18]
[356078400,1741884658277,-402.07477776,0.00028489,18]
[356078401,1741884658288,-97.92522224,0.00028489,18]
[356078402,1741884658298,-345.74972776,0.00028489,18]
[356078403,1741884658309,-18.14027224,0.00028489,18]
[356078404,1741884658319,-500.0,0.00028489,18]
[356078405,1741884658328,-550.6,0.00028489,18]
[356078406,1741884658337,-500.0,0.00028489,18]
[356078407,1741884658347,-190.26,0.00028489,18]
[356078408,1741884658356,-500.0,0.00028489,18]
[356078409,1741884658366,-150.52,0.00028489,18]
[356078410,1741884658376,-138.00972776,0.00028489,18]
[356078411,1741884658388,-532.38180266,0.00028489,18]
[356078412,1741884658399,-432.47846958,0.00028489,18]
[356078413,1741884658409,-1102.87,0.00028489,18]
[356078414,1741884658418,-517.95294136,0.00028489,18]
[356078415,1741884658430,-99.66705864,0.00028489,18]
[356078416,1741884658439,-617.62,0.00028489,18]
[356078417,1741884658449,-500.0,0.00028489,18]
[356078418,1741884658459,-376.55,0.00028489,18]
[356078419,1741884658469,-378.93,0.00028489,18]
[356078420,1741884658479,-623.89,0.00028489,18]
[356078421,1741884658488,-500.0,0.00028489,18]
[356078422,1741884658497,-198.46,0.00028489,18]
[356078423,1741884658507,-213.95,0.00028489,18]
[356078424,1741884658516,-500.0,0.00028489,18]
[356078425,1741884658526,-485.49,0.00028489,18]
[356078426,1741884658535,-333.29,0.00028489,18]
[356078427,1741884658545,-500.0,0.00028489,18]
[356078428,1741884658555,-500.0,0.00028489,18]
[356078429,1741884658564,-258.81,0.00028489,18]
[356078430,1741884658574,-402.46,0.00028489,18]
[356078431,1741884658583,-251.92,0.00028489,18]
[356078432,1741884658593,-500.0,0.00028489,18]
[356078433,1741884658602,-578.06,0.00028489,18]
[356078434,1741884658611,-433.82,0.00028489,18]
[356078435,1741884658621,-206.09,0.00028495,2]
[356078436,1741884658630,-500.0,0.00028496,2]
[356078437,1741884658640,-500.0,0.00028498,18]
[356078438,1741884658649,-150.0,0.00028498,2]
[356078439,1741884658659,-400.75,0.00028498,18]
[356078440,1741884658671,-500.0,0.00028498,18]
[356078441,1741884658681,-500.0,0.00028498,18]
[356078442,1741884658692,-500.0,0.00028498,18]
[356078443,1741884658702,-4094.11,0.00028498,18]
[356078444,1741884658711,-299.4,0.00028498,18]
[356078445,1741884658721,-500.0,0.00028498,2]
[356078446,1741884658732,-500.0,0.00028498,2]
[356078447,1741884658741,-500.0,0.00028498,18]
[356078448,1741884658751,-500.0,0.00028498,18]
[356078449,1741884658760,-300.0,0.00028499,2]
[356078450,1741884658769,-201.42,0.00028499,18]
[356078451,1741884658781,-433.19,0.00028499,18]
[356078452,1741884658791,-500.0,0.00028499,18]
[356078453,1741884658800,-500.0,0.00028499,18]
[356078454,1741884658810,-500.0,0.00028499,18]
[356078455,1741884658820,-500.0,0.00028499,18]
[356078456,1741884658831,-500.0,0.00028499,18]
[356078457,1741884658840,-500.0,0.00028499,18]
[356078458,1741884658851,-500.0,0.00028499,18]
[356078459,1741884658860,-500.0,0.00028499,18]
[356078460,1741884658871,-500.0,0.00028499,18]
[356078461,1741884658880,-500.0,0.00028499,18]
[356078462,1741884658889,-500.0,0.00028499,18]
[356078463,1741884658899,-500.0,0.00028499,18]
[356078464,1741884658909,-500.0,0.00028499,18]
[356078465,1741884658918,-500.0,0.00028499,18]
[356078466,1741884658928,-500.0,0.00028499,18]
[356078467,1741884658937,-500.0,0.00028499,18]
[356078468,1741884658951,-500.0,0.00028499,18]
[356078469,1741884658961,-448.37439343,0.00028499,18]
[356078470,1741884658971,-532.18251116,0.00028499,18]
[356078471,1741884658981,-467.15,0.00028499,18]
[356078472,1741884658990,-489.93,0.00028499,18]
[356078473,1741884658999,-219.34,0.00028499,18]
[356078474,1741884659009,-292.1,0.00028499,18]
[356078475,1741884659018,-333.25,0.00028499,18]
[356078476,1741884659028,-500.0,0.00028499,18]
[356078477,1741884659038,-743.5,0.00028499,2]
[356078478,1741884659047,-500.0,0.00028499,18]
[356078479,1741884659056,-335.25,0.00028499,18]
[356078480,1741884659066,-500.0,0.00028499,18]
[356078481,1741884659075,-358.63,0.00028499,18]
[356078482,1741884659084,-404.16,0.00028499,18]
[356078483,1741884659094,-214.69,0.00028499,18]
[356078484,1741884659103,-347.93,0.00028499,18]
[356078485,1741884659114,-610.84,0.00028499,18]
[356078486,1741884659124,-500.0,0.00028499,7]
[356078487,1741884659137,-558.06,0.00028499,7]
[356078488,1741884659146,-453.68,0.00028499,18]
[356078489,1741884659156,-152.89,0.00028499,18]
[356078490,1741884659166,-500.0,0.00028499,18]
[356078491,1741884659176,-196.25,0.00028499,18]
[356078492,1741884659185,-451.31,0.00028499,18]
[356078493,1741884659195,-151.0,0.00028499,7]
[356078494,1741884659205,-234.76,0.00028499,2]
[356078495,1741884659215,-170.23,0.00028499,18]
[356078496,1741884659224,-500.0,0.00028499,18]
[356078497,1741884659234,-445.56,0.00028499,18]
[356078498,1741884659243,-429.78263794,0.00028499,18]
[356078499,1741884659258,-567.83,0.00028499,18]
[356078500,1741884659267,-170.88,0.00028499,18]
[356078501,1741884659276,-151.0,0.00028499,7]
[356078502,1741884659286,-151.0,0.00028499,7]
[356078503,1741884659295,-163.96,0.00028499,18]
[356078504,1741884659304,-247.97,0.00028499,18]
[356078505,1741884659314,-500.0,0.00028499,18]
[356078506,1741884659323,-500.0,0.00028499,18]
[356078507,1741884659332,-594.16,0.00028499,18]
[356078508,1741884659341,-500.0,0.00028499,18]
[356078509,1741884659351,-500.0,0.00028499,18]
[356078510,1741884659360,-649.17,0.00028499,18]
[356078511,1741884659369,-495.41276795,0.00028499,18]
[356078512,1741884659378,-1000.0,0.00028499,7]
[356078513,1741884659387,-373.90181822,0.00028499,18]
[356078514,1741884659397,-500.0,0.00028499,18]
[356078515,1741884659406,-500.0,0.00028499,18]
[356078516,1741884659416,-500.0,0.00028499,18]
[356078517,1741884659425,-500.0,0.00028499,18]
[356078518,1741884659435,-500.0,0.00028499,18]
[356078519,1741884659445,-601.59,0.00028499,18]
[356078520,1741884659454,-500.0,0.00028499,18]
[356078521,1741884659464,-500.0,0.00028499,18]
[356078522,1741884659473,-500.0,0.00028499,18]
[356078523,1741884659487,-500.0,0.00028499,18]
[356078524,1741884659496,-500.0,0.00028499,18]
[356078525,1741884659506,-500.0,0.00028499,18]
[356078526,1741884659515,-500.0,0.00028499,18]
[356078527,1741884659525,-500.0,0.00028499,18]
[356078528,1741884659534,-500.0,0.00028499,18]
[356078529,1741884659544,-500.0,0.00028499,18]
[356078530,1741884659553,-500.0,0.00028499,18]
[356078531,1741884659563,-582.87,0.00028499,18]
[356078532,1741884659572,-151.0,0.00028499,7]
[356078533,1741884659581,-184.75,0.00028499,18]
[356078534,1741884659591,-151.0,0.00028499,7]
[356078535,1741884659601,-151.0,0.00028499,7]
[356078536,1741884659611,-500.0,0.00028499,18]
[356078537,1741884659621,-500.0,0.00028499,18]
[356078538,1741884659631,-500.0,0.00028499,18]
[356078539,1741884659641,-500.0,0.00028499,18]
[356078540,1741884659651,-500.0,0.00028499,18]
[356078541,1741884659662,-500.0,0.00028499,18]
[356078542,1741884659671,-353.11,0.00028499,18]
[356078543,1741884659681,-235.92,0.00028499,18]
[356078544,1741884659692,-151.0,0.00028499,7]
[356078545,1741884659701,-1102.87,0.00028499,18]
[356078546,1741884659711,-1102.87,0.00028499,18]
[356078547,1741884659721,-1102.87,0.00028499,18]
[356078548,1741884659731,-1102.87,0.00028499,18]
[356078549,1741884659741,-1102.87,0.00028499,18]
[356078550,1741884659751,-1102.87,0.00028499,18]
[356078551,1741884659760,-1102.87,0.00028499,18]
[356078552,1741884659770,-1102.87,0.00028499,18]
[356078553,1741884659781,-1102.87,0.00028499,18]
[356078554,1741884659791,-1102.87,0.00028499,18]
[356078555,1741884659801,-1102.87,0.00028499,18]
[356078556,1741884659811,-1102.87,0.00028499,18]
[356078557,1741884659820,-1102.87,0.00028499,18]
[356078558,1741884659830,-1102.87,0.00028499,18]
[356078559,1741884659840,-1102.87,0.00028499,18]
[356078560,1741884659850,-617.62,0.00028499,18]
[356078561,1741884659860,-1102.87,0.00028499,18]
[356078562,1741884659870,-617.62,0.00028499,18]
[356078563,1741884659880,-1102.87,0.00028499,18]
[356078564,1741884659889,-617.62,0.00028499,18]
[356078565,1741884659899,-1102.87,0.00028499,18]
[356078566,1741884659908,-617.62,0.00028499,18]
[356078567,1741884659918,-1102.87,0.00028499,18]
[356078568,1741884659927,-1102.87093093,0.00028499,18]
[356078569,1741884659937,-617.62,0.00028499,18]
[356078570,1741884659948,-617.62,0.00028499,18]
[356078571,1741884659958,-617.62,0.00028499,18]
[356078572,1741884659968,-617.62,0.00028499,18]
[356078573,1741884659978,-617.62,0.00028499,18]
[356078574,1741884659988,-617.62,0.00028499,18]
[356078575,1741884659998,-617.62,0.00028499,18]
[356078576,1741884660008,-617.62,0.00028499,18]
[356078577,1741884660019,-617.62,0.00028499,18]
[356078578,1741884660029,-617.62,0.00028499,18]
[356078579,1741884660039,-617.62,0.00028499,18]
[356078580,1741884660050,-617.62,0.00028499,18]
[356078581,1741884660060,-617.62,0.00028499,18]
[356078582,1741884660070,-617.62,0.00028499,18]
[356078583,1741884660080,-617.62,0.00028499,18]
[356078584,1741884660090,-617.78847259,0.00028499,18]
[356078585,1741884660100,-500.0,0.00028499,18]
[356078586,1741884660110,-500.0,0.00028499,18]
[356078587,1741884660122,-500.8,0.00028499,18]
[356078588,1741884660137,-518.8,0.00028499,18]
[356078589,1741884660147,-348.45,0.00028499,18]
[356078590,1741884660158,-500.0,0.00028499,18]
[356078591,1741884660168,-500.0,0.00028499,18]
[356078592,1741884660179,-500.0,0.00028499,18]
[356078593,1741884660190,-500.0,0.00028499,18]
[356078594,1741884660202,-500.0,0.00028499,18]
[356078595,1741884660214,-500.0,0.00028499,18]
[356078596,1741884660224,-227.73469999,0.00028499,18]
[356078597,1741884660236,-968.555085,0.00028499,7]
[356078598,1741884660247,-968.555085,0.00028499,7]
[356078599,1741884660258,-277.26,0.00028499,18]
[356078600,1741884660444,-151.0,0.00028499,7]
[356078601,1741884660455,-4094.11,0.00028499,18]
[356078602,1741884660465,-4094.11,0.00028499,18]
[356078603,1741884660475,-4094.11,0.00028499,18]
[356078604,1741884660484,-4094.11,0.00028499,18]
[356078605,1741884660494,-4094.11,0.00028499,18]
[356078606,1741884660504,-4094.11,0.00028499,18]
[356078607,1741884660513,-4094.11,0.00028499,18]
[356078608,1741884660523,-4094.11,0.00028499,18]
[356078609,1741884660533,-151.0,0.00028499,7]
[356078610,1741884660543,-4094.11,0.00028499,18]
[356078611,1741884660552,-4094.11,0.00028499,18]
[356078612,1741884660562,-4094.11,0.00028499,18]
[356078613,1741884660571,-4094.11,0.00028499,18]
[356078614,1741884660581,-4094.11,0.00028499,18]
[356078615,1741884660590,-4094.11,0.00028499,18]
[356078616,1741884660600,-4094.11,0.00028499,18]
[356078617,1741884660610,-4094.11,0.00028499,18]
[356078618,1741884660619,-4094.18717763,0.00028499,18]
[356078619,1741884660629,-500.0,0.00028499,2]
[356078620,1741884660639,-500.0,0.00028499,2]
[356078621,1741884660649,-500.0,0.00028499,2]
[356078622,1741884660659,-500.0,0.00028499,2]
[356078623,1741884660668,-500.0,0.00028499,2]
[356078624,1741884660678,-500.0,0.00028499,2]
[356078625,1741884660688,-500.0,0.00028499,2]
[356078626,1741884660697,-500.0,0.00028499,2]
[356078627,1741884660707,-501.17560488,0.00028499,2]
[356078628,1741884660717,-500.0,0.00028499,2]
[356078629,1741884660727,-500.0,0.00028499,2]
[356078630,1741884660737,-500.0,0.00028499,2]
[356078631,1741884660747,-500.0,0.00028499,2]
[356078632,1741884660757,-279.79,0.00028499,2]
[356078633,1741884660767,-503.53,0.00028499,18]
[356078634,1741884660777,-500.0,0.00028499,18]
[356078635,1741884660787,-500.0,0.00028499,18]
[356078636,1741884660796,-500.0,0.00028499,18]
[356078637,1741884660806,-500.0,0.00028499,18]
[356078638,1741884660815,-272487.19100955,0.000285,2]
[356078639,1741884660926,-500.0,0.00028468,18]
[356078640,1741884660936,-308.86,0.0002847,18]
[356078641,1741884660949,-191.14,0.0002847,18]
[356078642,1741884660959,-161.62938,0.0002848,42]
[356078643,1741884660969,-500.0,0.00028499,18]
[356078644,1741884660979,-500.0,0.00028499,18]
[356078645,1741884660988,-500.0,0.00028499,18]
[356078646,1741884660998,-500.0,0.00028499,18]
[356078647,1741884661009,-503.47230655,0.00028499,18]
[356078648,1741884661018,-2578.72061342,0.000285,2]
[356078649,1741884661031,-51794.9999955,0.000285,2]
[356078650,1741884661042,-93905.47113392,0.000285,2]
[356078662,1741885832261,-173.62,0.00020891,2]
[356078663,1741885832271,-281.92031631,0.00022981,2]
[356078664,1741885832282,-268.07968369,0.00022981,2]
[356078665,1741885832292,-790.23,0.00024536,2]
[356078666,1741885832302,-500.0,0.00026,9]
[356078667,1741885832311,-438.96,0.00026074,120]
[356078668,1741885832321,-1000.0,0.000261,9]
[356078669,1741885832330,-321.38,0.00026106,30]
[356078670,1741885832339,-173.62,0.00026114,2]
[356078671,1741885832349,-1500.0,0.000262,9]
[356078672,1741885832358,-2000.0,0.000263,9]
[356078673,1741885832368,-2500.0,0.000264,9]
[356078674,1741885832378,-973.04,0.00026416,2]
[356078675,1741885832387,-1722.03,0.0002649,120]
[356078676,1741885832397,-500.0,0.000265,9]
[356078677,1741885832407,-500.0,0.000266,9]
[356078678,1741885832417,-500.0,0.000267,9]
[356078679,1741885832427,-154.31,0.00026786,2]
[356078680,1741885832437,-790.23,0.000268,2]
[356078681,1741885832446,-500.0,0.000268,9]
[356078682,1741885832455,-204.98269598,0.000269,4]
[356078683,1741885832465,-620.0,0.000269,9]
[356078684,1741885832474,-11451.57668605,0.00026908,2]
[356078685,1741885832489,-8315.48633208,0.00026908,2]
[356078691,1741885838105,-2587.42803,0.00026908,2]
[356078692,1741885838116,-1545.50895187,0.00026908,2]
[356078693,1741885838126,-154.31,0.00026953,2]
[356078694,1741885838135,-154.31,0.00027121,2]
[356078695,1741885838145,-2000.0,0.0002723,2]
[356078696,1741885838155,-588.27104817,0.00027261,2]
[356078697,1741885838166,-1264.14895183,0.00027261,2]
[356078698,1741885838176,-150.0,0.00027288,2]
[356078699,1741885838185,-154.31,0.00027288,2]
[356078700,1741885838195,-2709.04,0.00027333,2]
[356078701,1741885838204,-397.57279332,0.00027379,2]
[356078702,1741885838214,-2394.6627406,0.00027379,2]
[356078703,1741885838223,-250.0,0.00027382,2]
[356078704,1741885838233,-170.6,0.000274,4]
[356078705,1741885838243,-168.09814614,0.000274,4]
[356078706,1741885838252,-168.09814614,0.000274,4]
[356078707,1741885838262,-168.09814614,0.000274,4]
[356078708,1741885838272,-168.09814614,0.000274,4]
[356078709,1741885838282,-168.09,0.000274,4]
[356078710,1741885838291,-150.85731064,0.000274,4]
[356078711,1741885838301,-150.85731064,0.000274,4]
[356078712,1741885838310,-150.85731064,0.000274,4]
[356078713,1741885838319,-150.85731064,0.000274,4]
[356078714,1741885838328,-150.85731064,0.000274,4]
[356078715,1741885838338,-150.85731064,0.000274,4]
[356078716,1741885838347,-150.85731064,0.000274,4]
[356078717,1741885838356,-150.85731064,0.000274,4]
[356078718,1741885838366,-150.85731064,0.000274,4]
[356078719,1741885838374,-150.85731064,0.000274,4]
[356078720,1741885838384,-150.85731064,0.000274,4]
[356078721,1741885838393,-150.85731064,0.000274,4]
[356078722,1741885838402,-150.85,0.000274,4]
[356078723,1741885838411,-150.0,0.0002741,7]
[356078724,1741885838421,-154.31,0.00027456,2]
[356078726,1741885838430,-4043.97557868,0.00027456,14]
[356078727,1741885838439,-130.89654173,0.00027456,2]
[356078730,1741885838455,-44.44345827,0.00027456,2]
[356078732,1741885838464,-391.19487644,0.00027459,3]
[356078734,1741885838475,-14609.16909265,0.00027459,3]
[356078736,1741885838486,-1467.36899122,0.00027459,3]
[356078739,1741885838497,-494.369955,0.00027459,3]
[356078741,1741885838510,-268.28055403,0.00027459,3]
[356078743,1741885838521,-889.58900093,0.00027459,3]
[356078745,1741885838535,-902.66,0.00027459,3]
[356078747,1741885838550,-1049.99999,0.00027459,3]
[356078752,1741885840417,-422.3836,0.00027459,3]
[356078753,1741885840430,-1500.44620705,0.00027459,3]
[356078754,1741885840581,-414.07655165,0.00027459,3]
[356078755,1741885840592,-432.93250001,0.00027459,3]
[356078756,1741885840603,-8584.88045929,0.00027459,3]
[356078757,1741885840615,-1127.12493025,0.00027459,3]
[356078758,1741885840627,-554.85750002,0.00027459,3]
[356078759,1741885840638,-8396.27617999,0.00027459,3]
[356078760,1741885840691,-24104.6103854,0.00027459,3]
[356078761,1741885843549,-2026.88,0.00026737,2]
[356078762,1741885843559,-9116.07020357,0.00027459,3]
[356078763,1741885843569,-455.62474872,0.00027468,18]
[356078764,1741885843604,-109.62525128,0.00027468,18]
[356078765,1741885843618,-335.09979872,0.00027468,18]
[356078766,1741885843632,-164.90020128,0.00027468,18]
[356078767,1741885843641,-500.0,0.00027468,18]
[356078768,1741885843651,-500.0,0.00027468,18]
[356078769,1741885843659,-500.0,0.00027468,18]
[356078770,1741885843668,-500.0,0.00027468,18]
[356078771,1741885843678,-384.91,0.00027468,18]
[356078772,1741885843687,-500.0,0.00027468,18]
[356078773,1741885843696,-500.0,0.00027468,18]
[356078774,1741885843706,-500.0,0.00027468,18]
[356078776,1741885843714,-500.0,0.00027468,18]
[356078778,1741885843724,-500.0,0.00027468,18]
[356078780,1741885843733,-500.0,0.00027468,18]
[356078782,1741885843742,-500.0,0.00027468,18]
[356078784,1741885843751,-271.18979897,0.00027468,18]
[356078786,1741885843767,-228.81020103,0.00027468,18]
[356078788,1741885843776,-500.0,0.00027468,18]
[356078790,1741885843785,-222.85,0.00027468,18]
[356078792,1741885843794,-500.0,0.00027468,18]
[356078794,1741885843803,-500.0,0.00027468,18]
[356078796,1741885843813,-500.0,0.00027468,18]
[356078798,1741885843823,-500.0,0.00027468,18]
[356078800,1741885843833,-500.0,0.00027468,18]
[356078801,1741885843842,-500.0,0.00027468,18]
[356078802,1741885843851,-500.0,0.00027468,18]
[356078803,1741885843860,-500.0,0.00027468,18]
[356078804,1741885843870,-533.76,0.00027468,18]
[356078806,1741885843880,-500.0,0.00027468,18]
[356078808,1741885843890,-500.0,0.00027468,18]
[356078809,1741885843900,-500.0,0.00027468,18]
[356078810,1741885843910,-500.0,0.00027468,18]
[356078811,1741885843920,-62.10078236,0.00027468,18]
[356078812,1741885843931,-437.89921764,0.00027468,18]
[356078813,1741885843941,-439.57,0.00027468,18]
[356078814,1741885843951,-500.0,0.00027468,18]
[356078815,1741885843959,-158.06,0.00027468,18]
[356078816,1741885843969,-500.0,0.00027468,18]
[356078817,1741885843978,-500.0,0.00027468,18]
[356078818,1741885843987,-500.0,0.00027468,18]
[356078819,1741885843996,-500.0,0.00027468,18]
[356078820,1741885844007,-199.37596796,0.00027468,18]
[356078829,1741885846230,-300.62403204,0.00027468,18]
[356078830,1741885846240,-500.0,0.00027468,18]
[356078831,1741885846250,-500.0,0.00027468,18]
[356078832,1741885846259,-67.96491531,0.00027468,18]
[356078833,1741885846283,-432.03508469,0.00027468,18]
[356078834,1741885846293,-117.31493781,0.00027468,18]
[356078835,1741885846304,-360.08234564,0.00027468,18]
[356078836,1741885846339,-22.60271655,0.00027468,18]
[356078837,1741885846349,-500.0,0.00027468,18]
[356078838,1741885846359,-500.0,0.00027468,18]
[356078839,1741885846369,-500.0,0.00027468,18]
[356078840,1741885846378,-500.0,0.00027468,18]
[356078841,1741885846387,-389.4,0.00027468,18]
[356078842,1741885846396,-500.0,0.00027468,18]
[356078843,1741885846405,-500.0,0.00027468,18]
[356078844,1741885846414,-500.0,0.00027468,18]
[356078845,1741885846423,-500.0,0.00027468,18]
[356078846,1741885846432,-500.0,0.00027468,18]
[356078847,1741885846441,-227.59,0.00027468,18]
[356078848,1741885846451,-500.0,0.00027468,18]